Workbook

Sheet Sheet1
A1: The Area of a Printed Page Problem
B3: This DIGMath module lets you investigate
B4: the calculus problem of finding
B5: the dimensions of the smallest page
B6: that will hold a fixed amount of printing
C7: given restrictions on the
C8: sizes of the margins.
A11: What is the area of the printed portion?
B12: (10 - 100 square units) | E12: Area = | F12: =D13 -> 32
D13: 32 | E13: =#REF!+D13*(#REF!-#REF!)/100 ->  | K13: The graph of the page area function = | O13: (x + 2h)(Area/x + 2k)
A16: How wide h are the left and right margins? | L16: Select the width of the printed area: x0 = | P16: =4+O17/250 -> 6 | Q16: units
B17: (1 - 4 units) | E17: h = | F17: =D18/2 -> 1.5 | O17: 500 | P17: =Sheet2!H7+O17*(Sheet2!H8-Sheet2!H7)/100 -> 24
D18: 3 | E18: =#REF!+D18*(#REF!-#REF!)/100 ->  | M18: The area of the full page is | P18: =(x0+2*h)*y0 -> 84.00 | Q18: square units
A20: How high kare the top and bottom margins? | N20: The value of the derivative is A' = | R20: =Sheet2!I29 -> 1.333333333
B21: (1 - 4 units) | E21: k = | F21: =D22/2 -> 2
D22: 4 | E22: =#REF!+D22*(#REF!-#REF!)/100 -> 
A25: ="With a width of "&TEXT(x0,"0.00") &" units for the printed area, " -> With a width of 6.00 units for the printed area,
A27: =" the dimensions of the page are "&TEXT(x0+2*h,"0.00") &" by " &TEXT(y0,"0.00") -> the dimensions of the page are 9.00 by 9.33
A30: Click each item below for suggestions and investigations
C31: Item 1
C32: Item 2
C33: Item 3
A36: To access/download all the DIGMath Apps for Calculus
A37: Click this link: | C37: DIGMath for Calculus
A39: Created by: Sheldon P. Gordon
A40: Farmingdale State College
A41: Development of this module was supported by the
A42: NSF's Division of Undergraduate Education
A43: under grants DUE-0310123 and DUE-0442160.

Sheet Sheet2
B1: x | C1: f(x) | D1: f'(x) | G1: xl= | H1: =IF(x0<Sheet2!H7+80*Sheet2!H5,Sheet2!H7,x0-80*Sheet2!H5) -> 5.68 | I1: =LOOKUP(Sheet1!P17,Sheet2!B3:B1002,Sheet2!C3:C1002)+LOOKUP(Sheet1!P17,Sheet2!B3:B1002,Sheet2!D3:D1002)*(H1-Sheet1!P17) -> 42.2 | J1: "=yl
G2: xr= | H2: =IF(Sheet1!$P$17>Sheet2!H8-80*Sheet2!H5,Sheet2!H8,Sheet1!P17+80*Sheet2!H5) -> 8 | I2: =LOOKUP(Sheet1!P17,Sheet2!B3:B1003,Sheet2!C3:C1003)+LOOKUP(Sheet1!P17,Sheet2!B3:B1003,Sheet2!D3:D1003)*(H2-Sheet1!P17) -> 48 | J2: "=yR
A3: 0 | B3: =4 -> 4.0 | C3: =(x+2*h)*(Area/x+2*k) -> 84 | D3: =2*k-2*h*Area/x^2 -> -2
A4: 1 | B4: =B3+0.05 -> 4.1 | C4: 83.9037037 | D4: -1.852766347
A5: 2 | B5: 4.1 | C5: 83.81463415 | D5: -1.710886377 | G5: delta x = | H5: =(xMax-xMin)/1000 -> 0.004
A6: 3 | B6: 4.2 | C6: 83.73253012 | D6: -1.574103643
A7: 4 | B7: 4.2 | C7: 83.65714286 | D7: -1.442176871 | G7: xMin = | H7: 4 | I7: =C3 -> 84
A8: 5 | B8: 4.3 | C8: 83.58823529 | D8: -1.314878893 | G8: xMax = | H8: 8 | I8: =C83 -> 88
A9: 6 | B9: 4.3 | C9: 83.5255814 | D9: -1.191995673
A10: 7 | B10: 4.4 | C10: 83.46896552 | D10: -1.073325406
A11: 8 | B11: 4.4 | C11: 83.41818182 | D11: -0.958677686 | G11: Point
A12: 9 | B12: 4.5 | C12: 83.37303371 | D12: -0.8478727433 | G12: =x0 -> 6 | H12: 0
A13: 10 | B13: 4.5 | C13: 83.33333333 | D13: -0.7407407407
A14: 11 | B14: 4.6 | C14: 83.2989011 | D14: -0.6371211206 | G14: Horizontal Line
A15: 12 | B15: 4.6 | C15: 83.26956522 | D15: -0.5368620038 | G15: 0 | H15: 0
A16: 13 | B16: 4.7 | C16: 83.24516129 | D16: -0.4398196323 | G16: =G12 -> 6 | H16: 0
A17: 14 | B17: 4.7 | C17: 83.22553191 | D17: -0.3458578542
A18: 15 | B18: 4.8 | C18: 83.21052632 | D18: -0.2548476454 | G18: Diagnonal Line
A19: 16 | B19: 4.8 | C19: 83.2 | D19: -0.1666666667 | G19: 0 | H19: 200
A20: 17 | B20: 4.9 | C20: 83.19381443 | D20: -0.08119885216 | G20: 997 | H20: 0
A21: 18 | B21: 4.9 | C21: 83.19183673 | D21: 0.001665972511
A22: 19 | B22: 5.0 | C22: 83.19393939 | D22: 0.08203244567
A23: 20 | B23: 5.0 | C23: 83.2 | D23: 0.16 | G23: Point on curve
A24: 21 | B24: 5.1 | C24: 83.20990099 | D24: 0.2356631703 | G24: x= | H24: =G12*H5 -> 0.024
A25: 22 | B25: 5.1 | C25: 83.22352941 | D25: 0.30911188 | F25: x0 = | G25: =x0 -> 6 | H25: =LOOKUP(x0,B3:B84,C3:C84) -> 84
A26: 23 | B26: 5.2 | C26: 83.2407767 | D26: 0.3804317089 | F26: y0 = | G26: =Area/x0+2*k -> 9.333333333
A27: 24 | B27: 5.2 | C27: 83.26153846 | D27: 0.449704142
A28: 25 | B28: 5.3 | C28: 83.28571429 | D28: 0.5170068027 | G28: =x0 -> 6 | H28: 0 | I28: 0
A29: 26 | B29: 5.3 | C29: 83.31320755 | D29: 0.5824136703 | G29: =x0 -> 6 | H29: =LOOKUP(x0,B3:B84,C3:C84) -> 84 | I29: =LOOKUP(x0,B3:B84,D3:D84) -> 1.333333333
A30: 27 | B30: 5.4 | C30: 83.34392523 | D30: 0.6459952834
A31: 28 | B31: 5.4 | C31: 83.37777778 | D31: 0.70781893
A32: 29 | B32: 5.4 | C32: 83.4146789 | D32: 0.7679488259
A33: 30 | B33: 5.5 | C33: 83.45454545 | D33: 0.826446281
A34: 31 | B34: 5.5 | C34: 83.4972973 | D34: 0.8833698563
A35: 32 | B35: 5.6 | C35: =(x+2*h)*(Area/x+2*k) -> 83.54285714 | D35: =2*k-2*h*Area/x^2 -> 0.9387755102
A36: 33 | B36: 5.6 | C36: 83.59115044 | D36: 0.9927167358
A37: 34 | B37: 5.7 | C37: 83.64210526 | D37: 1.045244691
A38: 35 | B38: 5.7 | C38: 83.69565217 | D38: 1.096408318
A39: 36 | B39: 5.8 | C39: 83.75172414 | D39: 1.146254459
A40: 37 | B40: 5.8 | C40: 83.81025641 | D40: 1.194827964
A41: 38 | B41: 5.9 | C41: 83.87118644 | D41: 1.24217179
A42: 39 | B42: 5.9 | C42: 83.93445378 | D42: 1.288327096
A43: 40 | B43: 6.0 | C43: 84 | D43: 1.333333333
A44: 41 | B44: 6.0 | C44: 84.0677686 | D44: 1.377228331
A45: 42 | B45: 6.1 | C45: 84.13770492 | D45: 1.420048374
A46: 43 | B46: 6.1 | C46: 84.2097561 | D46: 1.461828277
A47: 44 | B47: 6.2 | C47: 84.28387097 | D47: 1.502601457
A48: 45 | B48: 6.2 | C48: 84.36 | D48: 1.5424
A49: 46 | B49: 6.3 | C49: 84.43809524 | D49: 1.581254724
A50: 47 | B50: 6.3 | C50: 84.51811024 | D50: 1.619195238
A51: 48 | B51: 6.4 | C51: 84.6 | D51: 1.65625
A52: 49 | B52: 6.4 | C52: 84.68372093 | D52: 1.692446367
A53: 50 | B53: 6.5 | C53: 84.76923077 | D53: 1.727810651
A54: 51 | B54: 6.5 | C54: 84.85648855 | D54: 1.76236816
A55: 52 | B55: 6.6 | C55: 84.94545455 | D55: 1.796143251
A56: 53 | B56: 6.6 | C56: 85.03609023 | D56: 1.829159365
A57: 54 | B57: 6.7 | C57: 85.12835821 | D57: 1.861439073
A58: 55 | B58: 6.7 | C58: 85.22222222 | D58: 1.893004115
A59: 56 | B59: 6.8 | C59: 85.31764706 | D59: 1.923875433
A60: 57 | B60: 6.8 | C60: 85.41459854 | D60: 1.954073206
A61: 58 | B61: 6.9 | C61: 85.51304348 | D61: 1.983616887
A62: 59 | B62: 6.9 | C62: 85.61294964 | D62: 2.012525232
A63: 60 | B63: 7.0 | C63: 85.71428571 | D63: 2.040816327
A64: 61 | B64: 7.0 | C64: 85.81702128 | D64: 2.06850762
A65: 62 | B65: 7.1 | C65: 85.92112676 | D65: 2.095615949
A66: 63 | B66: 7.1 | C66: 86.02657343 | D66: 2.122157563
A67: 64 | B67: 7.2 | C67: =(x+2*h)*(Area/x+2*k) -> 86.13333333 | D67: =2*k-2*h*Area/x^2 -> 2.148148148
A68: 65 | B68: 7.2 | C68: 86.24137931 | D68: 2.173602854
A69: 66 | B69: 7.3 | C69: 86.35068493 | D69: 2.198536311
A70: 67 | B70: =B69+0.05 -> 7.3 | C70: 86.46122449 | D70: 2.222962654
A71: 68 | B71: 7.4 | C71: 86.57297297 | D71: 2.246895544
A72: 69 | B72: 7.4 | C72: 86.68590604 | D72: 2.270348183
A73: 70 | B73: 7.5 | C73: 86.8 | D73: 2.293333333
A74: 71 | B74: 7.5 | C74: 86.91523179 | D74: 2.315863339
A75: 72 | B75: 7.6 | C75: 87.03157895 | D75: 2.337950139
A76: 73 | B76: 7.6 | C76: 87.14901961 | D76: 2.35960528
A77: 74 | B77: 7.7 | C77: 87.26753247 | D77: 2.380839939
A78: 75 | B78: 7.7 | C78: 87.38709677 | D78: 2.401664932
A79: 76 | B79: 7.8 | C79: 87.50769231 | D79: 2.42209073
A80: 77 | B80: 7.8 | C80: 87.62929936 | D80: 2.44212747
A81: 78 | B81: 7.9 | C81: 87.75189873 | D81: 2.46178497
A82: 79 | B82: 7.9 | C82: 87.8754717 | D82: 2.481072742
A83: 80 | B83: 8.0 | C83: 88 | D83: 2.5

Sheet Sheet3
